bitfinex/quotes_BTCUSD_20260127
["timestamp","ask_amount","ask_price","bid_price","bid_amount"]
[1769476936187,0.42832871,88472.0,88454.0,0.06459412]
[1769476936815,0.43963172,88472.0,88454.0,0.06459412]
[1769476937221,0.43963184,88471.0,88454.0,0.06459412]
[1769476937443,0.42832871,88471.0,88454.0,0.06459412]
[1769476937797,0.20450768,88471.0,88455.0,0.04585763]
[1769476938187,0.20450768,88471.0,88455.0,0.04610123]
[1769476941146,0.21581081,88471.0,88455.0,0.04610123]
[1769476941457,0.01130326,88470.0,88455.0,0.04610123]
[1769476941688,0.01130339,88469.0,88455.0,0.04610123]
[1769476941875,0.24073208,88471.0,88456.0,0.08401926]
[1769476942055,0.22942895,88471.0,88456.0,0.08401926]
[1769476942260,0.22942895,88471.0,88456.0,0.08426286]
[1769476942502,0.24073208,88471.0,88456.0,0.08426286]
[1769476943057,0.22942895,88471.0,88456.0,0.08426286]
[1769476943255,0.24073208,88471.0,88456.0,0.08426286]
[1769476943526,0.22942895,88471.0,88457.0,0.09242119]
[1769476943757,0.22942895,88471.0,88456.0,0.0002436]
[1769476948931,0.02492127,88501.0,88472.0,0.4361037]
[1769476949138,0.02492127,88501.0,88456.0,0.0002436]
[1769476949139,0.02492127,88501.0,88481.0,0.4361037]
[1769476949320,0.01129879,88505.0,88482.0,0.51976313]
[1769476949321,0.02492127,88500.0,88482.0,0.51976313]
[1769476949658,0.02492127,88499.0,88464.0,0.02302886]
[1769476949859,0.02492127,88493.0,88468.0,0.4361037]
[1769476950076,0.42814295,88490.0,88469.0,0.54906606]
[1769476950279,0.42814295,88490.0,88468.0,0.02302886]
[1769476950280,0.02492127,88489.0,88471.0,0.4361037]
[1769476950516,0.02492127,88489.0,88472.0,0.11296236]
[1769476950717,0.02492127,88489.0,88468.0,0.02302886]
[1769476950718,0.02492127,88489.0,88473.0,0.12656148]
[1769476950922,0.02492127,88489.0,88474.0,0.11296236]
[1769476951138,0.02492127,88489.0,88475.0,0.11296236]
[1769476951349,0.42814295,88499.0,88475.0,0.4361037]
[1769476951550,0.42814295,88497.0,88475.0,0.4361037]
[1769476951845,0.02492127,88495.0,88476.0,0.48337687]
[1769476952174,0.05649462,88504.0,88477.0,0.02302886]
[1769476952295,0.42814295,88501.0,88477.0,0.02316843]
[1769476952495,0.01484216,88498.0,88477.0,0.02316843]
[1769476952718,0.44298511,88497.0,88477.0,0.07518287]
[1769476954133,0.44298511,88497.0,88477.0,0.02316843]
[1769476954134,0.42814295,88497.0,88477.0,0.02316843]
[1769476954339,0.01484216,88493.0,88477.0,0.00013957]
[1769476954558,0.42814295,88490.0,88477.0,0.00013957]
[1769476954757,0.42814295,88488.0,88477.0,0.00013957]
[1769476955564,0.42814295,88506.0,88488.0,0.01]
[1769476955768,0.44748265,88506.0,88488.0,0.51604582]
[1769476957242,0.44748265,88506.0,88488.0,0.46913256]
[1769476957442,0.44748265,88506.0,88488.0,0.4461037]
[1769476957682,0.24365799,88527.0,88488.0,0.4461037]
[1769476957683,0.0193397,88513.0,88491.0,0.02302886]
[1769476957999,0.44748265,88513.0,88493.0,0.02302886]
[1769476958602,0.44748265,88513.0,88494.0,0.4361037]
[1769476960263,0.2427,88518.0,88494.0,0.4361037]
[1769476960510,0.2427,88518.0,88496.0,0.02302886]
[1769476960511,0.24231032,88518.0,88496.0,0.02302886]
[1769476960664,0.24231032,88518.0,88499.0,0.4361037]
[1769476960861,0.24231032,88518.0,88502.0,0.02302886]
[1769476961141,0.24231032,88518.0,88503.0,0.45913256]
[1769476961378,0.45306422,88524.0,88505.0,0.4361037]
[1769476961540,0.46436059,88524.0,88505.0,0.4361037]
[1769476961747,0.02492127,88523.0,88505.0,0.4361037]
[1769476961947,0.46436071,88523.0,88505.0,0.4361037]
[1769476962365,0.45306422,88523.0,88505.0,0.4361037]
[1769476962530,0.43990527,88523.0,88505.0,0.4361037]
[1769476962714,0.02492127,88521.0,88505.0,0.4361037]
[1769476963121,0.02492127,88521.0,88505.0,0.48660828]
[1769476963543,0.45306422,88521.0,88505.0,0.48660828]
[1769476963892,0.45306422,88521.0,88505.0,0.4361037]
[1769476964748,0.02492127,88520.0,88505.0,0.4361037]
[1769476965550,0.01129726,88517.0,88484.0,0.4361037]
[1769476965758,0.02492127,88510.0,88487.0,0.02302886]
[1769476965941,0.0112979,88512.0,88487.0,0.45913256]
[1769476965942,0.02492127,88507.0,88487.0,0.45913256]
[1769476966578,0.42814295,88506.0,88487.0,0.45913256]
[1769476966827,0.02492127,88505.0,88487.0,0.45913256]
[1769476967049,0.35660808,88530.0,88470.0,0.4715362]
[1769476967050,0.02492127,88554.0,88507.0,0.02302886]
[1769476967242,0.02492127,88554.0,88532.0,0.02302886]
[1769476967243,0.02506099,88554.0,88532.0,0.02302886]
[1769476967407,0.02506099,88554.0,88536.0,0.02302886]
[1769476967408,0.00013972,88554.0,88536.0,0.02302886]
[1769476967625,0.00013972,88554.0,88540.0,0.4361037]
[1769476967797,0.00013972,88554.0,88542.0,0.4361037]
[1769476970911,0.00013972,88554.0,88546.0,0.43920057]
[1769476971066,0.0003584,88559.0,88549.0,0.02473322]
[1769476971250,0.0003584,88559.0,88552.0,0.43920057]
[1769476971773,0.0003584,88559.0,88552.0,0.48559395]
[1769476972585,0.0003584,88559.0,88551.0,0.02473322]
[1769476972810,0.0003584,88559.0,88546.0,0.46393379]
[1769476976273,0.0003584,88559.0,88548.0,0.43920057]
[1769476976554,0.0003584,88559.0,88551.0,0.02473322]
[1769476976744,0.0003584,88559.0,88551.0,0.46393379]
[1769476976946,0.0003584,88559.0,88551.0,0.51034114]
[1769476978208,0.0003584,88559.0,88551.0,0.46393379]
[1769476978701,0.0003584,88559.0,88551.0,0.43920057]
[1769476978884,0.0003584,88559.0,88548.0,0.00013972]
[1769476981552,0.0003584,88559.0,88548.0,0.43934029]
[1769476982103,0.02298377,88557.0,88548.0,0.00013972]
[1769476983227,0.0003584,88559.0,88548.0,0.00013972]
[1769476985372,0.0003584,88559.0,88549.0,0.04393403]
[1769476985706,0.0003584,88559.0,88548.0,0.00013972]
[1769476986355,0.0003584,88559.0,88549.0,0.43920057]
[1769476988357,0.01128999,88574.0,88549.0,0.43920057]
[1769476988358,0.44065333,88573.0,88549.0,0.43920057]
[1769476988560,0.44065333,88571.0,88549.0,0.43920057]
[1769476988775,0.01434193,88568.0,88550.0,0.04640735]
[1769476988973,0.44065333,88567.0,88550.0,0.04640735]
[1769476989782,0.44065333,88567.0,88551.0,0.02473322]
[1769476992096,0.01434193,88568.0,88551.0,0.02473322]
[1769476992685,0.45499526,88568.0,88551.0,0.02473322]
[1769476994613,0.01434193,88567.0,88551.0,0.02473322]
[1769476994819,0.44065333,88566.0,88551.0,0.02473322]
[1769476995498,0.44065333,88566.0,88548.0,0.43934029]
[1769476995719,0.37665477,88561.0,88548.0,0.00013972]
[1769476996386,0.37665477,88561.0,88549.0,0.11274709]
[1769476996636,0.37665477,88561.0,88548.0,0.00013972]
[1769476996766,0.37665477,88561.0,88549.0,0.11274799]
[1769476996971,0.37674837,88561.0,88548.0,0.00013972]
[1769476997189,0.37674837,88561.0,88549.0,0.11274769]
[1769476997392,0.37674837,88561.0,88550.0,0.11281349]
[1769476997598,0.37674837,88561.0,88548.0,0.00013972]
[1769476997799,0.37674837,88561.0,88549.0,0.11282791]
[1769476997977,0.37674837,88561.0,88550.0,0.11282791]
[1769476998179,0.8174017,88561.0,88548.0,0.00013972]
[1769476998402,0.37674837,88561.0,88550.0,0.02473322]
[1769476998766,0.37674837,88561.0,88550.0,0.47540097]
[1769476998972,9.36e-05,88561.0,88550.0,0.47540097]
[1769476999203,9.36e-05,88561.0,88551.0,0.02432175]
[1769476999408,9.36e-05,88561.0,88554.0,0.38094775]
[1769477001804,9.36e-05,88561.0,88553.0,0.02432175]
[1769477008074,0.01129075,88568.0,88553.0,0.02432175]
[1769477008242,0.01129075,88568.0,88551.0,0.44206545]
[1769477008243,0.01129101,88566.0,88551.0,0.44206545]
[1769477008466,0.03543962,88567.0,88552.0,0.11283043]
[1769477008673,0.03543962,88567.0,88551.0,0.44206545]
[1769477008872,0.03543962,88567.0,88552.0,0.11283035]
[1769477009052,0.03543962,88567.0,88551.0,0.44206545]
[1769477009250,0.03543962,88567.0,88552.0,0.11283035]
[1769477009451,0.03543962,88567.0,88551.0,0.44206545]
[1769477009639,0.03543962,88567.0,88552.0,0.11283097]
[1769477009968,0.49792647,88567.0,88551.0,0.44206545]
[1769477010126,0.49792647,88567.0,88552.0,0.11283067]
[1769477010321,0.49792647,88567.0,88551.0,0.44206545]
[1769477010521,0.49792647,88567.0,88552.0,0.11283055]
[1769477010723,0.49792647,88567.0,88551.0,0.44206545]
[1769477010930,0.49792647,88567.0,88552.0,0.11283025]
[1769477011262,0.02414874,88566.0,88551.0,0.44206545]
[1769477011461,0.02414874,88566.0,88552.0,0.11283072]
[1769477011661,0.02414874,88566.0,88551.0,0.44206545]
[1769477011863,0.02414874,88566.0,88552.0,0.11283076]
[1769477012025,0.02414874,88566.0,88551.0,0.44206545]
[1769477012230,0.02414874,88566.0,88552.0,0.11283076]
[1769477012464,0.02414874,88566.0,88551.0,0.44206545]
[1769477012625,0.02414874,88566.0,88552.0,0.11283202]
[1769477012839,0.02414874,88566.0,88551.0,0.44206545]
[1769477013058,0.02414874,88566.0,88552.0,0.11283137]
[1769477013247,0.02414874,88566.0,88551.0,0.44206545]
[1769477013450,0.02414874,88566.0,88552.0,0.1128329]
[1769477013650,0.02414874,88566.0,88551.0,0.44206545]
[1769477013942,0.02414874,88566.0,88552.0,0.11283331]
[1769477014132,0.02414874,88566.0,88551.0,0.44206545]
[1769477014371,0.02414874,88566.0,88552.0,0.11283331]
[1769477014579,0.02414874,88573.0,88553.0,0.44206545]
[1769477014777,0.02414874,88573.0,88553.0,0.46586832]
[1769477015032,0.37661194,88570.0,88553.0,0.46586832]
[1769477015230,0.40076068,88570.0,88553.0,0.46586832]
[1769477015396,0.02414874,88569.0,88553.0,0.44206545]
[1769477015914,0.02414874,88568.0,88553.0,0.44206545]
[1769477016117,0.02414874,88568.0,88548.0,0.00013972]
[1769477016118,0.02414874,88566.0,88548.0,0.00013972]
[1769477016454,0.47377773,88567.0,88549.0,0.11283263]
[1769477016635,0.47377773,88567.0,88550.0,0.11283263]
[1769477016636,0.02414874,88564.0,88550.0,0.11283263]
[1769477016853,0.02414874,88564.0,88548.0,0.44220517]
[1769477017018,0.02414874,88564.0,88549.0,0.55490507]
[1769477017223,0.02414874,88564.0,88550.0,0.11283962]
[1769477017541,0.02414874,88564.0,88549.0,0.44206545]
[1769477023478,0.02414874,88564.0,88548.0,0.00013972]
[1769477023479,0.46248685,88559.0,88548.0,0.00013972]
[1769477023658,0.37661194,88560.0,88548.0,0.00013972]
[1769477023659,0.02414874,88557.0,88548.0,0.00013972]
[1769477026880,0.46248685,88557.0,88548.0,0.00013972]
[1769477027192,0.02414874,88556.0,88548.0,0.00013972]
[1769477031639,0.43778975,88556.0,88548.0,0.00013972]
[1769477031968,0.02462768,88555.0,88548.0,0.00013972]
[1769477033963,0.02462768,88553.0,88536.0,0.47873501]
[1769477034263,0.37661194,88550.0,88537.0,0.11280958]
[1769477034463,0.02462768,88551.0,88538.0,0.11280958]
[1769477034663,0.02462768,88551.0,88539.0,0.11280958]
[1769477034902,0.02462768,88551.0,88540.0,0.11280958]
[1769477035107,0.02462768,88551.0,88536.0,0.47873501]
[1769477035422,0.02462768,88551.0,88537.0,0.11280626]
[1769477035647,0.02462768,88551.0,88536.0,0.47873501]
[1769477035648,0.02462768,88551.0,88538.0,0.11280626]
[1769477035800,5.255e-05,88553.0,88539.0,0.11280626]
[1769477036121,5.255e-05,88553.0,88540.0,0.11280626]
[1769477036420,5.255e-05,88553.0,88539.0,0.47873501]
[1769477036602,5.255e-05,88553.0,88540.0,0.11279226]
[1769477036805,5.255e-05,88553.0,88539.0,0.50268176]
[1769477037035,5.255e-05,88553.0,88540.0,0.11278911]
[1769477037250,5.255e-05,88553.0,88539.0,0.50268176]
[1769477037408,5.255e-05,88553.0,88540.0,0.11278572]
[1769477037641,5.255e-05,88553.0,88539.0,0.50566139]
[1769477037836,5.255e-05,88553.0,88540.0,0.61546743]
[1769477038198,5.255e-05,88553.0,88540.0,0.50268176]
[1769477041481,5.255e-05,88553.0,88541.0,0.02394675]
[1769477041630,5.255e-05,88553.0,88541.0,0.50268176]
[1769477041831,5.255e-05,88553.0,88542.0,0.05026818]
[1769477042375,0.1194,88610.0,88542.0,0.05026818]
[1769477042376,0.02462768,88572.0,88555.0,0.02394675]
[1769477042674,0.02462768,88572.0,88553.0,5.255e-05]
[1769477042675,0.02462768,88572.0,88556.0,0.50268176]
[1769477043109,0.02462768,88572.0,88499.0,0.01129956]
[1769477043110,0.01128884,88583.0,88560.0,0.37661194]
[1769477043322,0.06773511,88581.0,88562.0,0.47873501]
[1769477043523,0.38790117,88580.0,88563.0,0.02394675]
[1769477044459,0.37661194,88580.0,88563.0,0.02394675]
[1769477045049,0.37661194,88580.0,88563.0,0.50268176]
[1769477047423,0.37661194,88580.0,88560.0,5.255e-05]
[1769477047424,0.43778975,88577.0,88560.0,5.255e-05]
[1769477047599,0.46241743,88577.0,88560.0,5.255e-05]
[1769477048387,0.37661194,88570.0,88560.0,5.255e-05]
[1769477048924,0.02462768,88576.0,88560.0,5.255e-05]
[1769477049083,0.46241743,88576.0,88560.0,5.255e-05]
[1769477049290,0.47370716,88576.0,88560.0,5.255e-05]
[1769477049694,0.01128986,88575.0,88560.0,5.255e-05]
[1769477050297,0.44907961,88575.0,88560.0,5.255e-05]
[1769477053393,0.37661194,88570.0,88560.0,5.255e-05]
[1769477054059,0.46241743,88569.0,88560.0,5.255e-05]
[1769477055932,0.02462768,88569.0,88560.0,5.255e-05]
[1769477057322,0.37661194,88570.0,88550.0,0.02394675]
[1769477057323,0.43778975,88566.0,88550.0,0.02394675]
[1769477057539,0.46255705,88566.0,88550.0,0.02394675]
[1769477057977,0.46255705,88566.0,88550.0,0.50268176]
[1769477058561,0.0250524,88566.0,88550.0,0.50268176]
[1769477059852,0.00042472,88566.0,88551.0,0.02455868]
[1769477060061,0.00042472,88566.0,88552.0,0.44506993]
[1769477066048,0.01814855,88566.0,88552.0,0.44506993]
[1769477066373,0.01814855,88566.0,88553.0,0.02384332]
[1769477066536,0.02309297,88578.0,88555.0,0.02384332]
[1769477066739,0.44205482,88579.0,88557.0,0.02384332]
[1769477066942,0.02330147,88577.0,88558.0,0.4648845]
[1769477067144,0.01128986,88575.0,88558.0,0.4648845]
[1769477067694,0.03438283,88575.0,88558.0,0.4648845]
[1769477067846,0.03438283,88575.0,88559.0,0.04888674]
[1769477068057,0.02309297,88575.0,88559.0,0.04888674]
[1769477068426,0.02309297,88575.0,88560.0,0.4648845]
[1769477068651,0.02309297,88575.0,88560.0,0.4647659]
[1769477068827,0.0002085,88577.0,88561.0,0.02384332]
[1769477069026,0.0002085,88577.0,88562.0,0.43212595]
[1769477070624,0.05665669,88577.0,88562.0,0.31892221]
[1769477070827,0.01149811,88577.0,88562.0,0.1491166]
[1769477071042,0.01149811,88577.0,88562.0,1e-08]
[1769477072819,0.01149811,88577.0,88560.0,0.4648845]
[1769477073688,0.03459108,88577.0,88561.0,0.04888674]
[1769477073988,0.03459108,88577.0,88560.0,0.4648845]
[1769477074217,0.02309297,88576.0,88560.0,0.4648845]
[1769477079989,0.44205482,88576.0,88556.0,0.4648845]
[1769477080136,0.02309297,88575.0,88556.0,0.4648845]
[1769477081926,0.37665012,88570.0,88556.0,0.4648845]
[1769477084991,0.02309297,88575.0,88556.0,0.4648845]
[1769477085923,0.02309297,88575.0,88556.0,0.46476589]
[1769477089824,0.02479251,88574.0,88556.0,0.46476589]
[1769477090070,0.37665012,88570.0,88556.0,0.46476589]
[1769477097558,0.02479251,88574.0,88556.0,0.46476589]
[1769477099450,0.02479251,88574.0,88560.0,0.37665012]
[1769477099655,0.0002085,88577.0,88561.0,0.47078035]
[1769477100060,0.0002085,88577.0,88562.0,0.06573115]
[1769477100260,0.0002085,88577.0,88562.0,0.47093656]
[1769477101721,0.0112891,88581.0,88555.0,0.00013962]
[1769477101722,0.0002,88589.0,88578.0,0.01]
[1769477101925,0.0002,88589.0,88579.0,0.47093656]
[1769477102129,0.0002,88589.0,88580.0,0.05045498]
[1769477102340,0.0002,88589.0,88578.0,0.02361319]
[1769477102341,0.0002,88589.0,88579.0,0.47093656]
[1769477102971,0.0002,88589.0,88579.0,0.49454975]
[1769477110613,0.0002,88589.0,88572.0,0.02361319]
[1769477110810,0.0002,88589.0,88573.0,0.49454975]
[1769477111866,0.0002,88589.0,88575.0,0.47093656]
[1769477113778,0.0002,88589.0,88576.0,0.02361319]
[1769477113991,0.0002,88589.0,88577.0,0.47093656]
[1769477115260,0.0002,88589.0,88577.0,0.49454975]
[1769477116180,0.0002,88589.0,88577.0,0.47093656]
[1769477116379,0.0002,88589.0,88581.0,0.02361319]
[1769477116614,0.0002,88589.0,88582.0,0.43796068]
[1769477116828,0.0002,88589.0,88582.0,0.02361319]
[1769477117019,0.0002,88589.0,88576.0,0.47093656]
[1769477117767,0.00031036,88589.0,88576.0,0.47093656]
[1769477117977,0.01128846,88586.0,88575.0,0.02361319]
[1769477118178,0.01159844,88589.0,88575.0,0.02361319]
[1769477118179,0.01170074,88589.0,88575.0,0.02361319]
[1769477118329,0.01170074,88589.0,88561.0,0.04929097]
[1769477118330,0.45284477,88583.0,88566.0,0.02361319]
[1769477118649,0.01128833,88587.0,88561.0,0.04929097]
[1769477118650,0.45284477,88581.0,88562.0,0.11254325]
[1769477118968,0.37665012,88580.0,88563.0,0.0233776]
[1769477119118,0.02326699,88578.0,88562.0,0.46933538]
[1769477119315,0.50456298,88578.0,88562.0,0.46933538]
[1769477119724,0.32315343,88578.0,88562.0,0.46933538]
[1769477120551,0.32315343,88578.0,88562.0,0.02440484]
[1769477122127,0.10064509,88578.0,88562.0,0.02440484]
[1769477123775,0.0001023,88587.0,88558.0,9.1e-05]
[1769477123776,0.37656152,88572.0,88558.0,9.1e-05]
[1769477123946,0.02363919,88577.0,88558.0,9.1e-05]
[1769477123947,0.47079407,88574.0,88558.0,9.1e-05]
[1769477124546,0.48208406,88574.0,88558.0,9.1e-05]
[1769477124911,0.47079407,88572.0,88558.0,9.1e-05]
[1769477125165,0.48208431,88572.0,88558.0,9.1e-05]
[1769477125369,0.47079407,88572.0,88558.0,9.1e-05]
[1769477125714,0.0514249,88571.0,88558.0,9.1e-05]
[1769477125916,0.47079407,88572.0,88558.0,9.1e-05]
[1769477130015,0.01129101,88566.0,88558.0,9.1e-05]
[1769477130214,0.48208482,88568.0,88558.0,2.69e-06]
[1769477130798,0.47079407,88568.0,88558.0,2.69e-06]
[1769477133619,0.47079407,88568.0,88553.0,0.14052484]
[1769477134660,0.48208482,88568.0,88553.0,0.14052484]
[1769477134881,0.47079407,88568.0,88553.0,0.14052484]
[1769477135099,0.01129114,88565.0,88553.0,0.11612]
[1769477135331,0.01129063,88569.0,88553.0,0.11612]
[1769477135537,0.4820847,88569.0,88553.0,0.11612]
[1769477136998,0.53853842,88569.0,88553.0,0.11612]
[1769477137385,0.47079407,88565.0,88553.0,0.11612]
[1769477145102,0.01129088,88567.0,88553.0,0.11612]
[1769477145306,0.84735559,88570.0,88553.0,0.11612]
[1769477145508,0.85864609,88570.0,88553.0,0.11612]
[1769477145892,0.01129088,88567.0,88553.0,0.11612]
[1769477146527,0.01129075,88568.0,88553.0,0.11612]
[1769477146739,0.01129088,88567.0,88553.0,0.11612]
[1769477147203,0.06774508,88568.0,88553.0,0.11612]
[1769477147628,0.84735559,88570.0,88553.0,0.11612]
[1769477147935,0.84735559,88570.0,88554.0,0.02868821]
[1769477149861,0.84735559,88570.0,88555.0,0.02868821]
[1769477150201,0.45421322,88579.0,88557.0,0.02868821]
[1769477151661,0.01129037,88571.0,88557.0,0.02868821]
[1769477152218,0.01129063,88569.0,88557.0,0.02868821]
[1769477152800,0.38785202,88570.0,88557.0,0.02868821]
[1769477153230,0.01129063,88569.0,88557.0,0.02868821]
[1769477154416,0.37656152,88570.0,88557.0,0.02868821]
[1769477154622,0.38785202,88570.0,88557.0,0.02868821]
[1769477156012,0.01129063,88569.0,88557.0,0.02868821]
[1769477156216,0.38785202,88570.0,88557.0,0.02868821]
[1769477157251,0.01129063,88569.0,88557.0,0.02868821]
[1769477157501,0.37656152,88570.0,88557.0,0.02868821]
[1769477157950,0.38785202,88570.0,88557.0,0.02868821]
[1769477159003,0.15154871,88570.0,88557.0,0.02868821]
[1769477159141,0.15154871,88570.0,88557.0,0.08894031]
[1769477160559,0.15154871,88570.0,88557.0,0.02868821]
[1769477162934,0.15154871,88570.0,88553.0,0.11612]
[1769477162935,0.01128961,88577.0,88558.0,0.45771278]
[1769477163237,0.01128961,88577.0,88561.0,0.02488628]
[1769477163238,0.01128973,88576.0,88561.0,0.02488628]
[1769477163549,0.01129012,88573.0,88561.0,0.02488628]
[1769477163942,0.01128986,88575.0,88561.0,0.02488628]
[1769477164090,0.01128999,88574.0,88561.0,0.02488628]
[1769477164286,0.01128986,88575.0,88561.0,0.02488628]
[1769477165667,0.45421322,88579.0,88562.0,0.02488628]
[1769477166467,0.45421322,88579.0,88563.0,0.02488628]
[1769477168217,0.02104636,88589.0,88565.0,0.02488628]
[1769477168426,0.02104636,88589.0,88568.0,0.45771278]
[1769477168626,0.02104636,88589.0,88569.0,0.02488628]
[1769477168824,0.01128872,88584.0,88569.0,0.02488628]
[1769477169051,0.01128897,88582.0,88569.0,0.02488628]
[1769477169280,0.01128935,88579.0,88569.0,0.02488628]
[1769477169500,0.01128948,88578.0,88569.0,0.02488628]
[1769477170656,0.01128948,88578.0,88561.0,0.45771278]
[1769477170882,0.01128948,88578.0,88562.0,0.48259906]
[1769477172559,0.01128935,88579.0,88562.0,0.48259906]
[1769477176562,0.01772221,88578.0,88562.0,0.48259906]
[1769477181875,0.01128986,88575.0,88562.0,0.48259906]
[1769477182182,0.01128973,88576.0,88562.0,0.48259906]
[1769477184480,0.01128961,88577.0,88562.0,0.48259906]
[1769477184705,0.02901169,88578.0,88562.0,0.48259906]
[1769477187912,0.05206762,88578.0,88562.0,0.48259906]
[1769477191639,0.02305593,88576.0,88553.0,0.13992914]
[1769477191855,0.02305593,88574.0,88554.0,0.46586762]
[1769477192317,0.32633626,88576.0,88554.0,0.46586762]
[1769477192563,0.38278546,88576.0,88557.0,0.48967676]
[1769477192795,0.01128986,88575.0,88559.0,0.46586762]
[1769477193211,0.01128986,88575.0,88559.0,0.48967676]
[1769477193611,0.01128999,88574.0,88559.0,0.48967676]
[1769477194070,0.01128986,88575.0,88559.0,0.48967676]
[1769477194400,0.01128986,88575.0,88559.0,0.53073262]
[1769477195600,0.01128986,88575.0,88559.0,0.48967676]
[1769477196242,0.32633626,88576.0,88559.0,0.48967676]
[1769477197312,0.01128986,88575.0,88559.0,0.48967676]
[1769477198125,0.01129012,88573.0,88559.0,0.48967676]
[1769477199507,0.01129037,88571.0,88559.0,0.48967676]
[1769477199713,0.01129024,88572.0,88559.0,0.48967676]
[1769477200768,0.46794858,88570.0,88553.0,0.11612]
[1769477200962,0.46794858,88570.0,88553.0,0.58198762]
[1769477201163,0.02305593,88571.0,88553.0,0.58198762]
[1769477201366,0.02305593,88571.0,88553.0,0.11612]
[1769477201562,0.02305593,88571.0,88554.0,0.48967676]
[1769477202403,0.0343463,88571.0,88554.0,0.48967676]
[1769477202615,0.02305593,88571.0,88554.0,0.48967676]
[1769477202951,0.02305593,88571.0,88555.0,0.02297952]
[1769477203165,0.02305593,88577.0,88561.0,0.46586762]
[1769477204303,0.46794858,88575.0,88560.0,0.3765445]
[1769477205274,0.02305593,88576.0,88560.0,0.3765445]
[1769477205482,0.02305593,88576.0,88560.0,0.46586762]
[1769477205695,0.000141,88579.0,88560.0,0.46586762]
[1769477205913,0.000141,88579.0,88553.0,0.11612]
[1769477205914,0.000141,88579.0,88563.0,0.02380914]
[1769477206074,0.000141,88579.0,88564.0,0.46586762]
[1769477211057,0.000141,88579.0,88564.0,0.48858922]
[1769477212042,0.000141,88579.0,88570.0,0.0227216]
[1769477212246,0.000141,88579.0,88543.0,0.09022]
[1769477212247,0.00031036,88589.0,88579.0,0.48721705]
[1769477213590,0.44865047,88596.0,88579.0,0.48721705]
[1769477213737,0.02259733,88595.0,88579.0,0.50908659]
[1769477214098,0.02259733,88595.0,88579.0,0.49659139]
[1769477214221,0.15820038,88594.0,88579.0,0.4911245]
[1769477214422,0.03388477,88594.0,88579.0,0.46457066]
[1769477214642,0.02259733,88594.0,88579.0,0.46457066]
[1769477214866,0.01128757,88593.0,88579.0,0.46457066]
[1769477215068,0.03388477,88594.0,88579.0,0.46457066]
[1769477215486,0.01128757,88593.0,88579.0,0.46457066]
[1769477215701,0.0112877,88592.0,88579.0,0.46457066]
[1769477216003,0.01128757,88593.0,88579.0,0.46457066]
[1769477216204,0.03388477,88594.0,88579.0,0.46457066]
[1769477216402,0.02259733,88594.0,88579.0,0.46457066]
[1769477216615,0.01128744,88594.0,88582.0,0.48721705]
[1769477216905,0.01128731,88595.0,88573.0,0.48721705]
[1769477217118,0.01128731,88595.0,88570.0,0.37654427]
[1769477217119,0.01128731,88595.0,88576.0,0.0227216]
[1769477217255,0.01128731,88595.0,88570.0,0.37654427]
[1769477217256,0.01128744,88594.0,88577.0,0.50993865]
[1769477217463,0.01128782,88591.0,88577.0,0.50993865]
[1769477218062,0.03388477,88594.0,88577.0,0.50993865]
[1769477219890,0.12096395,88594.0,88577.0,0.50993865]
[1769477220493,0.03388477,88594.0,88577.0,0.50993865]
[1769477221751,0.02259733,88594.0,88577.0,0.50993865]
[1769477221954,0.02259733,88594.0,88549.0,0.147746]
[1769477221955,0.02259733,88586.0,88572.0,0.11612]
[1769477222187,0.02259733,88584.0,88572.0,0.11612]
[1769477222941,0.01128897,88582.0,88567.0,0.60333705]
[1769477223154,0.03766233,88589.0,88550.0,0.11612]
[1769477223155,0.03259732,88567.0,88550.0,0.11612]
[1769477223353,0.02259733,88566.0,88550.0,0.11612]
[1769477223531,0.02259733,88565.0,88550.0,0.11612]
[1769477224337,0.02259733,88565.0,88557.0,0.00025636]
[1769477224747,0.3765445,88570.0,88557.0,0.00025636]
[1769477224945,0.02259733,88578.0,88558.0,0.48721705]
[1769477225146,0.02259733,88574.0,88558.0,0.48721705]
[1769477225346,0.03388732,88574.0,88558.0,0.48721705]
[1769477225576,0.02259733,88575.0,88558.0,0.48721705]
[1769477225776,0.01128986,88575.0,88558.0,0.48721705]
[1769477226056,0.02259733,88573.0,88558.0,0.48721705]
[1769477234602,0.09034972,88578.0,88560.0,0.50993865]
[1769477235411,0.09034972,88578.0,88561.0,0.0227216]
[1769477235739,0.09034972,88580.0,88563.0,0.0227216]
[1769477235894,0.09034972,88581.0,88566.0,0.48721705]
[1769477236303,0.10163882,88581.0,88566.0,0.48721705]
[1769477237106,0.3765445,88580.0,88566.0,0.48721705]
[1769477239954,0.40134036,88580.0,88566.0,0.48721705]
[1769477241187,0.09034972,88585.0,88571.0,0.46137921]
[1769477241369,0.09034972,88586.0,88573.0,0.46137921]
[1769477241571,0.01128808,88589.0,88573.0,0.46137921]
[1769477241973,0.01143421,88588.0,88573.0,0.46137921]
[1769477242182,0.01128833,88587.0,88573.0,0.46137921]
[1769477242357,0.02404535,88588.0,88573.0,0.46137921]
[1769477243127,0.000146,88588.0,88576.0,0.48124547]
[1769477243330,0.000146,88588.0,88576.0,0.46137921]
[1769477243456,0.02404535,88588.0,88576.0,0.46137921]
[1769477244006,0.02404535,88588.0,88569.0,0.46137921]
[1769477245212,0.02404535,88588.0,88571.0,0.46137921]
[1769477245397,0.02404535,88588.0,88572.0,0.01986626]
[1769477245597,0.02404535,88588.0,88573.0,0.46137921]
[1769477255259,0.02404535,88588.0,88557.0,0.48879557]
[1769477255260,0.02389935,88581.0,88557.0,0.48879557]
[1769477255466,0.02389935,88579.0,88559.0,0.46137921]
[1769477255684,0.02389935,88577.0,88559.0,0.46137921]
[1769477257397,0.02389935,88577.0,88559.0,0.48533988]
[1769477258986,0.02389935,88577.0,88560.0,0.37647371]
[1769477259170,0.02389935,88585.0,88563.0,0.48533988]
[1769477259368,0.02389935,88585.0,88560.0,0.37647371]
[1769477259369,0.02389935,88585.0,88565.0,0.46137921]
[1769477259546,0.02389935,88585.0,88565.0,0.48533988]
[1769477261864,0.02389935,88585.0,88566.0,0.02396067]
[1769477262064,0.09052553,88588.0,88571.0,0.46137921]
[1769477262213,0.09037953,88587.0,88573.0,0.48533988]
[1769477265265,0.09037953,88586.0,88573.0,0.48533988]
[1769477267597,0.09037953,88586.0,88573.0,0.46137921]
[1769477267812,0.000146,88588.0,88576.0,0.02396067]
[1769477267813,0.09037953,88587.0,88576.0,0.02396067]
[1769477268031,0.09037953,88587.0,88577.0,0.48533988]
[1769477269079,0.09037953,88586.0,88577.0,0.48533988]
[1769477270868,0.09037953,88586.0,88577.0,0.46137921]
[1769477271010,0.09037953,88586.0,88577.0,0.48449007]
[1769477272243,0.37647371,88590.0,88577.0,0.48449007]
[1769477272855,0.37647371,88590.0,88577.0,0.51488911]
[1769477273492,0.01128808,88589.0,88577.0,0.51488911]
[1769477273683,0.38776166,88590.0,88577.0,0.51488911]
[1769477274217,0.01128808,88589.0,88577.0,0.51488911]
[1769477274415,0.37647371,88590.0,88577.0,0.51488911]
[1769477275405,0.38776166,88590.0,88577.0,0.48449007]
[1769477275569,0.37647371,88590.0,88577.0,0.48449007]
[1769477279367,0.39419396,88590.0,88577.0,0.48449007]
[1769477280300,0.01772025,88590.0,88577.0,0.48449007]
[1769477280967,0.39419396,88590.0,88577.0,0.48449007]